fUST/lending_fUST_20240820
["ID","MTS","AMOUNT","RATE_DAILY","PERIOD"]
[335357181,1724157050040,-500.0,0.0001726,2]
[335357182,1724157050050,-500.0,0.0001726,2]
[335357183,1724157050060,-500.0,0.0001726,2]
[335357184,1724157050070,-994.14,0.0001726,2]
[335357185,1724157050082,-588.1015893,0.0001726,2]
[335357186,1724157050092,-506.02925083,0.0001726,2]
[335357187,1724157050103,-1254.91,0.0001726,2]
[335357188,1724157050114,-500.0,0.0001726,2]
[335357189,1724157050124,-500.0,0.0001726,2]
[335357190,1724157050134,-500.0,0.0001726,2]
[335357191,1724157050146,-500.0,0.0001726,2]
[335357192,1724157050157,-500.0,0.0001726,2]
[335357193,1724157050168,-1784.81,0.0001726,2]
[335357194,1724157050178,-500.0,0.0001726,2]
[335357195,1724157050188,-500.0,0.0001726,2]
[335357196,1724157050198,-507.03253315,0.0001726,2]
[335357197,1724157050209,-500.0,0.0001726,2]
[335357198,1724157050218,-1054.7,0.0001726,2]
[335357199,1724157050228,-1164.12,0.0001726,2]
[335357200,1724157050237,-500.0,0.0001726,2]
[335357201,1724157050246,-500.0,0.0001726,2]
[335357202,1724157050256,-500.0,0.0001726,2]
[335357203,1724157050265,-531.62,0.0001726,2]
[335357204,1724157050275,-296.21059283,0.0001726,2]
[335357205,1724157050284,-500.0,0.0001726,2]
[335357206,1724157050294,-354.30425358,0.0001726,2]
[335357207,1724157050304,-318.89111664,0.0001726,2]
[335357208,1724157050314,-468.17436403,0.0001726,2]
[335357209,1724157050323,-500.0,0.0001726,2]
[335357210,1724157050334,-500.0,0.0001726,2]
[335357211,1724157050344,-3094.32,0.0001726,2]
[335357212,1724157050353,-547.15,0.0001726,2]
[335357213,1724157050363,-608.13115475,0.0001726,2]
[335357214,1724157050373,-500.0,0.0001726,2]
[335357215,1724157050382,-500.0,0.0001726,2]
[335357216,1724157050392,-708.97,0.0001726,2]
[335357217,1724157050401,-500.0,0.0001726,2]
[335357218,1724157050410,-500.0,0.0001726,2]
[335357219,1724157050419,-500.0,0.0001726,2]
[335357220,1724157050429,-500.0,0.0001726,2]
[335357221,1724157050439,-190.57517064,0.0001726,2]
[335357222,1724157050449,-500.0,0.0001726,2]
[335357223,1724157050458,-500.0,0.0001726,2]
[335357224,1724157050468,-504.35890035,0.0001726,2]
[335357225,1724157050478,-500.0,0.0001726,2]
[335357226,1724157050487,-870.17,0.0001726,2]
[335357227,1724157050496,-740.4,0.0001726,2]
[335357228,1724157050506,-5579.9,0.0001726,2]
[335357229,1724157050515,-500.0,0.0001726,2]
[335357230,1724157050525,-500.0,0.0001726,2]
[335357231,1724157050534,-500.0,0.0001726,2]
[335357232,1724157050543,-510.03959753,0.0001726,2]
[335357233,1724157050553,-500.0,0.0001726,2]
[335357234,1724157050563,-500.0,0.0001726,2]
[335357235,1724157050572,-187.871923,0.00017309,2]
[335357236,1724157050582,-175.51296,0.00017309,2]
[335357237,1724157050598,-168.742703,0.00017309,2]
[335357238,1724157050609,-500.0,0.00017534,2]
[335357239,1724157050618,-334.0903665,0.00017534,2]
[335357240,1724157050992,-42415.91084593,0.00011731,2]
[335357241,1724157051002,-20797.12874944,0.00012163,2]
[335357242,1724157051011,-210.105085,0.00012934,2]
[335357243,1724157051021,-500.0,0.00016438,2]
[335357244,1724157051031,-165.9096335,0.00017534,2]
[335357245,1724157051039,-747.19,0.00017534,2]
[335357246,1724157051050,-609.26081606,0.00017534,2]
[335357247,1724157051059,-612.4,0.00017534,2]
[335357248,1724157051068,-500.0,0.00017534,2]
[335357249,1724157051077,-500.0,0.00017534,2]
[335357250,1724157051089,-500.0,0.00017534,2]
[335357251,1724157051098,-500.0,0.00017534,2]
[335357252,1724157051108,-500.0,0.00017534,2]
[335357253,1724157051117,-213.1,0.00017534,2]
[335357254,1724157051127,-644.95,0.00017534,2]
[335357255,1724157051136,-1527.65,0.00017534,2]
[335357256,1724157051145,-500.0,0.00017534,2]
[335357257,1724157051154,-500.0,0.00017534,2]
[335357258,1724157051164,-500.0,0.00017534,2]
[335357259,1724157051173,-827.42,0.00017534,2]
[335357260,1724157051182,-500.0,0.00017534,2]
[335357261,1724157051191,-500.0,0.00017534,2]
[335357262,1724157051201,-500.0,0.00017534,2]
[335357263,1724157051210,-500.0,0.00017534,2]
[335357264,1724157051219,-500.0,0.00017534,2]
[335357265,1724157051228,-648.70014127,0.00017534,2]
[335357266,1724157051237,-500.0,0.00017534,2]
[335357267,1724157051247,-500.0,0.00017534,2]
[335357268,1724157051256,-500.0,0.00017534,2]
[335357269,1724157051265,-500.0,0.00017534,2]
[335357270,1724157051275,-500.0,0.00017534,2]
[335357271,1724157051284,-500.0,0.00017534,2]
[335357272,1724157051293,-500.0,0.00017534,2]
[335357273,1724157051302,-500.0,0.00017534,2]
[335357274,1724157051312,-500.0,0.00017534,2]
[335357275,1724157051321,-500.0,0.00017534,2]
[335357276,1724157051330,-1900.07,0.00017534,2]
[335357277,1724157051341,-500.0,0.00017534,2]
[335357278,1724157051350,-500.0,0.00017534,2]
[335357279,1724157051360,-500.0,0.00017534,2]
[335357280,1724157051369,-500.0,0.00017534,2]
[335357281,1724157051379,-500.0,0.00017534,2]
[335357282,1724157051388,-982.09,0.00017534,2]
[335357283,1724157051398,-500.0,0.00017534,2]
[335357284,1724157051407,-500.0,0.00017534,2]
[335357285,1724157051416,-994.14,0.00017534,2]
[335357286,1724157051426,-1254.91,0.00017534,2]
[335357287,1724157051435,-500.0,0.00017534,2]
[335357288,1724157051445,-500.0,0.00017534,2]
[335357289,1724157051454,-500.0,0.00017534,2]
[335357290,1724157051464,-421.16147632,0.00017534,2]
[335357291,1724157051474,-497.27218882,0.00017534,2]
[335357292,1724157051483,-1784.81,0.00017534,2]
[335357293,1724157051493,-500.0,0.00017534,2]
[335357294,1724157051502,-500.0,0.00017534,2]
[335357295,1724157051512,-500.0,0.00017534,2]
[335357296,1724157051521,-1054.7,0.00017534,2]
[335357297,1724157051531,-1164.12,0.00017534,2]
[335357298,1724157051540,-500.0,0.00017534,2]
[335357299,1724157051549,-500.0,0.00017534,2]
[335357300,1724157051559,-500.0,0.00017534,2]
[335357301,1724157051569,-531.62,0.00017534,2]
[335357302,1724157051578,-500.0,0.00017534,2]
[335357303,1724157051589,-500.0,0.00017534,2]
[335357304,1724157051598,-500.0,0.00017534,2]
[335357305,1724157051608,-3094.32,0.00017534,2]
[335357306,1724157051617,-547.15,0.00017534,2]
[335357307,1724157051627,-500.0,0.00017534,2]
[335357308,1724157051637,-500.0,0.00017534,2]
[335357309,1724157051646,-708.97,0.00017534,2]
[335357310,1724157051656,-500.0,0.00017534,2]
[335357311,1724157051665,-500.0,0.00017534,2]
[335357312,1724157051675,-500.0,0.00017534,2]
[335357313,1724157051685,-500.0,0.00017534,2]
[335357314,1724157051694,-500.0,0.00017534,2]
[335357315,1724157051704,-391.52174425,0.00017534,2]
[335357316,1724157051713,-500.0,0.00017534,2]
[335357317,1724157051724,-870.17,0.00017534,2]
[335357318,1724157051733,-740.4,0.00017534,2]
[335357319,1724157051743,-5579.9,0.00017534,2]
[335357320,1724157051753,-500.0,0.00017534,2]
[335357321,1724157051762,-500.0,0.00017534,2]
[335357322,1724157051772,-544.89993281,0.00017534,2]
[335357323,1724157051781,-500.0,0.00017534,2]
[335357324,1724157051791,-406.73689988,0.00017534,2]
[335357325,1724157051801,-160.0,0.00017551,4]
[335357326,1724157051810,-452.1,0.00017633,2]
[335357327,1724157051819,-258.3,0.00017633,2]
[335357328,1724157051829,-420.00257582,0.00017808,2]
[335357329,1724157051840,-500.0,0.00017808,2]
[335357330,1724157051850,-747.19,0.00017808,2]
[335357331,1724157051859,-612.4,0.00017808,2]
[335357332,1724157051868,-500.0,0.00017808,2]
[335357333,1724157051880,-500.0,0.00017808,2]
[335357334,1724157051889,-500.0,0.00017808,2]
[335357335,1724157051898,-500.0,0.00017808,2]
[335357336,1724157051907,-500.0,0.00017808,2]
[335357337,1724157051918,-644.95,0.00017808,2]
[335357338,1724157051929,-1527.65,0.00017808,2]
[335357339,1724157051938,-500.0,0.00017808,2]
[335357340,1724157051947,-500.0,0.00017808,2]
[335357341,1724157051959,-266.7120858,0.00017808,2]
[335357342,1724157051969,-827.42,0.00017808,2]
[335357343,1724157051978,-500.0,0.00017808,2]
[335357344,1724157051987,-500.0,0.00017808,2]
[335357345,1724157051997,-500.0,0.00017808,2]
[335357346,1724157052006,-500.0,0.00017808,2]
[335357347,1724157052016,-500.0,0.00017808,2]
[335357348,1724157052026,-500.0,0.00017808,2]
[335357349,1724157052036,-500.0,0.00017808,2]
[335357350,1724157052045,-574.57,0.00017808,2]
[335357351,1724157052054,-500.0,0.00017808,2]
[335357352,1724157052064,-500.0,0.00017808,2]
[335357353,1724157052073,-500.0,0.00017808,2]
[335357354,1724157052084,-500.0,0.00017808,2]
[335357355,1724157052094,-500.0,0.00017808,2]
[335357356,1724157052103,-500.0,0.00017808,2]
[335357357,1724157052113,-500.0,0.00017808,2]
[335357358,1724157052122,-1900.07,0.00017808,2]
[335357359,1724157052132,-406.91929311,0.00017808,2]
[335357360,1724157052141,-500.0,0.00017808,2]
[335357361,1724157052150,-500.0,0.00017808,2]
[335357362,1724157052160,-514.19550752,0.00017808,2]
[335357363,1724157052169,-506.83749623,0.00017808,2]
[335357364,1724157052178,-982.09,0.00017808,2]
[335357365,1724157052188,-480.35904781,0.00017808,2]
[335357366,1724157052197,-500.0,0.00017808,2]
[335357367,1724157052206,-994.14,0.00017808,2]
[335357368,1724157052216,-1254.91,0.00017808,2]
[335357369,1724157052225,-500.0,0.00017808,2]
[335357370,1724157052234,-189.27118983,0.00017808,2]
[335357371,1724157052243,-500.0,0.00017808,2]
[335357372,1724157052252,-1784.81,0.00017808,2]
[335357373,1724157052262,-500.0,0.00017808,2]
[335357374,1724157052271,-500.0,0.00017808,2]
[335357375,1724157052280,-500.0,0.00017808,2]
[335357376,1724157052289,-1054.7,0.00017808,2]
[335357377,1724157052299,-1164.12,0.00017808,2]
[335357378,1724157052308,-500.0,0.00017808,2]
[335357379,1724157052318,-500.0,0.00017808,2]
[335357380,1724157052327,-500.0,0.00017808,2]
[335357381,1724157052338,-531.62,0.00017808,2]
[335357382,1724157052348,-500.0,0.00017808,2]
[335357383,1724157052359,-500.0,0.00017808,2]
[335357384,1724157052371,-500.0,0.00017808,2]
[335357385,1724157052381,-3094.32,0.00017808,2]
[335357386,1724157052393,-547.15,0.00017808,2]
[335357387,1724157052403,-325.07954754,0.00017808,2]
[335357388,1724157052414,-500.0,0.00017808,2]
[335357389,1724157052426,-708.97,0.00017808,2]
[335357390,1724157052437,-23.66362522,0.00017808,2]
[335357391,1724157052736,-303.91507343,0.00012985,2]
[335357392,1724157052748,-154.76012181,0.00012991,2]
[335357393,1724157052757,-134.33276009,0.00013496,2]
[335357394,1724157052768,-23.78935461,0.00013496,2]
[335357395,1724157052777,-500.0,0.00016438,2]
[335357396,1724157052789,-500.0,0.00016438,2]
[335357397,1724157052799,-500.0,0.00016438,2]
[335357398,1724157052810,-500.0,0.00016712,2]
[335357399,1724157052819,-122.91456617,0.00016712,2]
[335357400,1724157052833,-47.07543383,0.00016712,2]
[335357401,1724157052845,-476.33637478,0.00017808,2]
[335357402,1724157052855,-500.0,0.00017808,2]
[335357403,1724157052864,-500.0,0.00017808,2]
[335357404,1724157052876,-500.0,0.00017808,2]
[335357405,1724157052888,-500.0,0.00017808,2]
[335357406,1724157052899,-174.65161881,0.00017808,2]
[335357407,1724157052910,-870.17,0.00017808,2]
[335357408,1724157052920,-740.4,0.00017808,2]
[335357409,1724157052930,-818.23618393,0.00017808,2]
[335357410,1724157052984,-500.0,0.00016438,2]
[335357411,1724157052994,-500.0,0.00016438,2]
[335357412,1724157053007,-4761.66381607,0.00017808,2]
[335357413,1724157053020,-515.31143679,0.00017808,2]
[335357414,1724157053031,-500.0,0.00017808,2]
[335357415,1724157053042,-500.0,0.00017808,2]
[335357416,1724157053054,-477.13807535,0.00017824,2]
[335357417,1724157053065,-400.0,0.00017842,2]
[335357418,1724157053074,-205.9412067,0.00018,2]
[335357419,1724157053085,-738.60019085,0.00018011,2]
[335357420,1724157053095,-452.1,0.00018032,2]
[335357421,1724157053105,-258.3,0.00018032,2]
[335357422,1724157053117,-500.0,0.00018082,2]
[335357423,1724157053128,-747.19,0.00018082,2]
[335357424,1724157053138,-612.4,0.00018082,2]
[335357425,1724157053148,-491.69557677,0.00018082,2]
[335357426,1724157053159,-500.0,0.00018082,2]
[335357427,1724157053169,-500.0,0.00018082,2]
[335357428,1724157053179,-500.0,0.00018082,2]
[335357429,1724157053190,-500.0,0.00018082,2]
[335357430,1724157053201,-1527.65,0.00018082,2]
[335357431,1724157053210,-500.0,0.00018082,2]
[335357432,1724157053222,-500.0,0.00018082,2]
[335357433,1724157053233,-827.42,0.00018082,2]
[335357434,1724157053243,-500.0,0.00018082,2]
[335357435,1724157053253,-500.0,0.00018082,2]
[335357436,1724157053263,-500.0,0.00018082,2]
[335357437,1724157053274,-500.0,0.00018082,2]
[335357438,1724157053284,-500.0,0.00018082,2]
[335357439,1724157053295,-500.0,0.00018082,2]
[335357440,1724157053304,-236.43945453,0.00018082,2]
[335357441,1724157053314,-500.0,0.00018082,2]
[335357442,1724157053324,-500.0,0.00018082,2]
[335357443,1724157053334,-500.0,0.00018082,2]
[335357444,1724157053345,-591.55622483,0.00018082,2]
[335357445,1724157053355,-500.0,0.00018082,2]
[335357446,1724157053364,-500.0,0.00018082,2]
[335357447,1724157053374,-1900.07,0.00018082,2]
[335357448,1724157053386,-500.0,0.00018082,2]
[335357449,1724157053395,-388.52637591,0.00018082,2]
[335357450,1724157053405,-982.09,0.00018082,2]
[335357451,1724157053414,-500.0,0.00018082,2]
[335357452,1724157053423,-994.14,0.00018082,2]
[335357453,1724157053433,-1254.91,0.00018082,2]
[335357454,1724157053442,-500.0,0.00018082,2]
[335357455,1724157053454,-500.0,0.00018082,2]
[335357456,1724157053464,-1784.81,0.00018082,2]
[335357457,1724157053474,-500.0,0.00018082,2]
[335357458,1724157053484,-500.0,0.00018082,2]
[335357459,1724157053493,-500.0,0.00018082,2]
[335357460,1724157053504,-1054.7,0.00018082,2]
[335357461,1724157053514,-1164.12,0.00018082,2]
[335357462,1724157053525,-500.0,0.00018082,2]
[335357463,1724157053536,-500.0,0.00018082,2]
[335357464,1724157053546,-500.0,0.00018082,2]
[335357465,1724157053557,-531.62,0.00018082,2]
[335357466,1724157053569,-500.0,0.00018082,2]
[335357467,1724157053579,-500.0,0.00018082,2]
[335357468,1724157053590,-500.0,0.00018082,2]
[335357469,1724157053602,-3094.32,0.00018082,2]
[335357470,1724157053611,-547.15,0.00018082,2]
[335357471,1724157053621,-500.0,0.00018082,2]
[335357472,1724157053630,-708.97,0.00018082,2]
[335357473,1724157053639,-500.0,0.00018082,2]
[335357474,1724157053751,-500.0,0.00018082,2]
[335357475,1724157053763,-500.0,0.00018082,2]
[335357476,1724157053774,-500.0,0.00018082,2]
[335357477,1724157053785,-500.0,0.00018082,2]
[335357478,1724157053795,-870.17,0.00018082,2]
[335357479,1724157053806,-740.4,0.00018082,2]
[335357480,1724157053817,-5579.9,0.00018082,2]
[335357481,1724157053828,-500.0,0.00018082,2]
[335357482,1724157053840,-500.0,0.00018082,2]
[335357483,1724157053851,-175.51296,0.00018175,2]
[335357484,1724157053860,-1800.0,0.00018218,2]
[335357485,1724157053869,-1000.0,0.00018219,2]
[335357486,1724157053883,-600.0,0.00018233,2]
[335357487,1724157053894,-2400.0,0.00018237,2]
[335357488,1724157053905,-1800.0,0.00018271,2]
[335357489,1724157053915,-2400.0,0.00018282,2]
[335357490,1724157053926,-1800.0,0.00018291,2]
[335357491,1724157053938,-600.0,0.00018304,2]
[335357492,1724157053950,-600.0,0.00018331,2]
[335357493,1724157053961,-1000.0,0.00018335,2]
[335357494,1724157053973,-151.0,0.00018336,2]
[335357495,1724157053984,-151.0,0.00018336,2]
[335357496,1724157053995,-3607.92423264,0.00018336,10]
[335357497,1724157054005,-1000.0,0.00018343,2]
[335357498,1724157054015,-500.0,0.00018356,2]
[335357499,1724157054026,-747.19,0.00018356,2]
[335357500,1724157054037,-612.4,0.00018356,2]
[335357501,1724157054048,-500.0,0.00018356,2]
[335357502,1724157054058,-500.0,0.00018356,2]
[335357503,1724157054071,-500.0,0.00018356,2]
[335357504,1724157054081,-291.02554956,0.00018356,2]
[335357505,1724157054091,-1527.65,0.00018356,2]
[335357506,1724157054101,-500.0,0.00018356,2]
[335357507,1724157054113,-528.98791894,0.00018356,2]
[335357508,1724157054123,-827.42,0.00018356,2]
[335357509,1724157054134,-500.0,0.00018356,2]
[335357510,1724157054144,-500.0,0.00018356,2]
[335357511,1724157054154,-500.0,0.00018356,2]
[335357512,1724157054165,-500.0,0.00018356,2]
[335357513,1724157054174,-500.0,0.00018356,2]
[335357514,1724157054185,-390.43129201,0.00018356,2]
[335357515,1724157054196,-500.0,0.00018356,2]
[335357516,1724157054205,-500.0,0.00018356,2]
[335357517,1724157054215,-500.0,0.00018356,2]
[335357518,1724157054227,-500.0,0.00018356,2]
[335357519,1724157054238,-500.0,0.00018356,2]
[335357520,1724157054247,-1900.07,0.00018356,2]
[335357521,1724157054259,-151.0,0.00018356,2]
[335357522,1724157054268,-500.0,0.00018356,2]
[335357523,1724157054279,-982.09,0.00018356,2]
[335357524,1724157054288,-500.0,0.00018356,2]
[335357525,1724157054299,-994.14,0.00018356,2]
[335357526,1724157054310,-1254.91,0.00018356,2]
[335357527,1724157054320,-500.0,0.00018356,2]
[335357528,1724157054330,-500.0,0.00018356,2]
[335357529,1724157054340,-1784.81,0.00018356,2]
[335357530,1724157054349,-500.0,0.00018356,2]
[335357531,1724157054358,-500.0,0.00018356,2]
[335357532,1724157054368,-500.0,0.00018356,2]
[335357533,1724157054377,-1054.7,0.00018356,2]
[335357534,1724157054387,-1164.12,0.00018356,2]
[335357535,1724157054396,-500.0,0.00018356,2]
[335357536,1724157054406,-500.0,0.00018356,2]
[335357537,1724157054415,-500.0,0.00018356,2]
[335357538,1724157054425,-531.62,0.00018356,2]
[335357539,1724157054434,-500.0,0.00018356,2]
[335357540,1724157054444,-500.0,0.00018356,2]
[335357541,1724157054455,-500.0,0.00018356,2]
[335357542,1724157054465,-3094.32,0.00018356,2]
[335357543,1724157054475,-547.15,0.00018356,2]
[335357544,1724157054485,-500.0,0.00018356,2]
[335357545,1724157054495,-708.97,0.00018356,2]
[335357546,1724157054505,-500.0,0.00018356,2]
[335357547,1724157054515,-500.0,0.00018356,2]
[335357548,1724157054524,-500.0,0.00018356,2]
[335357549,1724157054534,-500.0,0.00018356,2]
[335357550,1724157054543,-500.0,0.00018356,2]
[335357551,1724157054552,-870.17,0.00018356,2]
[335357552,1724157054563,-740.4,0.00018356,2]
[335357553,1724157054573,-5579.9,0.00018356,2]
[335357554,1724157054583,-500.0,0.00018356,2]
[335357555,1724157054602,-500.0,0.00018356,2]
[335357556,1724157054611,-500.0,0.00018379,2]
[335357557,1724157054621,-1800.0,0.00018404,2]
[335357558,1724157054632,-160.0,0.00018411,5]
[335357559,1724157054643,-168.50315608,0.00018411,5]
[335357560,1724157054653,-2400.0,0.00018422,2]
[335357561,1724157054663,-452.1,0.0001843,2]
[335357562,1724157054672,-258.3,0.0001843,2]
[335357563,1724157054682,-2400.0,0.00018453,2]
[335357564,1724157054691,-151.0,0.00018482,2]
[335357565,1724157054701,-151.0,0.00018482,2]
[335357566,1724157054711,-151.0,0.00018482,2]
[335357567,1724157054722,-151.0,0.00018482,2]
[335357568,1724157054732,-151.0,0.00018482,2]
[335357569,1724157054742,-1800.0,0.00018534,2]
[335357570,1724157054753,-1800.0,0.00018555,2]
[335357571,1724157054762,-1000.0,0.00018561,2]
[335357572,1724157054772,-1800.0,0.00018611,2]
[335357573,1724157054782,-500.0,0.0001863,2]
[335357574,1724157054791,-747.19,0.0001863,2]
[335357575,1724157054800,-612.4,0.0001863,2]
[335357576,1724157054810,-334.17229854,0.0001863,2]
[335357577,1724157054820,-156.19516866,0.0001863,2]
[335357578,1724157054830,-500.0,0.0001863,2]
[335357579,1724157054843,-1527.65,0.0001863,2]
[335357580,1724157054853,-500.0,0.0001863,2]
[335357581,1724157054863,-827.42,0.0001863,2]
[335357582,1724157054872,-500.0,0.0001863,2]
[335357583,1724157054886,-151.0,0.0001863,2]
[335357584,1724157054895,-500.0,0.0001863,2]
[335357585,1724157054906,-500.0,0.0001863,2]
[335357586,1724157054916,-500.0,0.0001863,2]
[335357587,1724157054926,-500.0,0.0001863,2]
[335357588,1724157054936,-151.0,0.0001863,2]
[335357589,1724157054946,-500.0,0.0001863,2]
[335357590,1724157054957,-500.0,0.0001863,2]
[335357591,1724157054966,-52.91946624,0.0001863,2]
[335357594,1724157122911,258.18032213,0.00021,120]
[335357596,1724157306370,273.37336231,7.376e-05,2]
[335357597,1724157346634,2112.67730225,7.376e-05,2]
[335357598,1724157350948,3612.98227201,7.376e-05,2]
[335357599,1724157369641,44795.7332747,7.231e-05,2]
[335357600,1724157416534,218.66051313,7.231e-05,2]
[335357601,1724157430704,283.24710701,7.231e-05,2]
[335357602,1724157453276,2109.74256699,7.231e-05,2]
[335357603,1724157564757,4619.11395466,7.231e-05,2]
[335357618,1724158170168,-300.0,7.91e-05,2]
[335357619,1724158170194,-211.83114393,7.911e-05,2]
[335357659,1724158231640,-309.52710278,7.911e-05,2]
[335357661,1724158231650,-198.61632498,7.911e-05,2]
[335357663,1724158231660,-303.91507343,7.911e-05,2]
[335357665,1724158231671,-2166.4854483,7.911e-05,2]
[335357668,1724158231682,-1547.87289514,7.911e-05,2]
[335357670,1724158231693,-4894.2778057,9.942e-05,2]
[335357672,1724158231707,-1001.9295,9.942e-05,2]
[335357802,1724158237797,-19003.7926943,9.942e-05,2]
[335357804,1724158237806,-209.8509285,0.00010732,2]
[335357806,1724158237817,-265.0305907,0.00010739,2]
[335357808,1724158237826,-42415.91084593,0.00010957,2]
[335357810,1724158237835,-258.41,0.00010959,2]
[335357812,1724158237844,-55478.02051668,0.00011409,2]
[335357814,1724158237853,-20797.12874944,0.00011731,2]
[335357816,1724158237862,-34413.3095559,0.000119,2]
[335357818,1724158237871,-8845.25511796,0.00011987,2]
[335357820,1724158237880,-9660.2899886,0.00011999,2]
[335357821,1724158237890,-649.75766978,0.00012063,2]
[335357822,1724158237899,-34413.3095559,0.0001211,2]
[335357823,1724158237908,-7014.13255051,0.00012163,2]
[335357824,1724158237918,-2143.02877073,0.00012163,2]
[335357825,1724158237927,-1766.63770101,0.00012516,2]
[335357826,1724158237937,-1500.0,0.00012516,2]
[335357827,1724158237947,-2712.30651884,0.00012516,2]
[335357828,1724158237956,-2128.24653365,0.00012551,2]
[335357829,1724158237965,-156.63348559,0.00012885,2]
[335357830,1724158237975,-266.78584374,0.00012886,2]
[335357831,1724158237984,-1613.61724275,0.00012898,2]
[335357832,1724158237993,-728.8710597,0.00012898,2]
[335357833,1724158238003,-154.76012181,0.00012898,2]
[335357834,1724158238012,-933.89722372,0.00012934,2]
[335357835,1724158238022,-665.53459983,0.00012934,2]
[335357836,1724158238031,-155.23523035,0.00012934,2]
[335357837,1724158238040,-665.53459983,0.00012934,2]
[335357838,1724158238050,-898.81779354,0.00012934,2]
[335357839,1724158238059,-320.30409158,0.00012934,2]
[335357840,1724158238069,-493.36312925,0.00012971,2]
[335357841,1724158238079,-810.66321171,0.00012971,2]
[335357842,1724158238088,-154.87534708,0.00012971,2]
[335357843,1724158238098,-196.83090407,0.00012971,2]
[335357844,1724158238107,-160.46171883,0.00012971,2]
[335357845,1724158238119,-154.76012181,0.00012971,2]
[335357846,1724158238129,-601.94985179,0.00012971,2]
[335357847,1724158238138,-157.11235205,0.00012971,2]
[335357848,1724158238147,-544.06785329,0.00012971,2]
[335357849,1724158238156,-34413.3095559,0.00012979,2]
[335357850,1724158238166,-422.36012849,0.00012985,2]
[335357851,1724158238175,-413.70707529,0.00012985,2]
[335357852,1724158238184,-688.74575077,0.00012985,2]
[335357853,1724158238194,-413.70707529,0.00012985,2]
[335357854,1724158238203,-817.60790766,0.00012985,2]
[335357855,1724158238212,-404.47284307,0.00012985,2]
[335357856,1724158238222,-688.74575077,0.00012985,2]
[335357857,1724158238231,-154.76012181,0.00012985,2]
[335357858,1724158238246,-156.87056893,0.00012989,2]
[335357859,1724158238255,-190.09307092,0.00012989,2]
[335357860,1724158238264,-342.6945234,0.00012989,2]
[335357861,1724158238274,-569.6147727,0.00012989,2]
[335357862,1724158238284,-223.54518659,0.00012991,2]
[335357863,1724158238293,-210.105085,0.00012999,2]
[335357864,1724158238302,-301.56944091,0.00012999,2]
[335357865,1724158238312,-158.1221147,0.00013025,2]
[335357866,1724158238324,-158.1221147,0.00013025,2]
[335357867,1724158238335,-649.75766977,0.00013132,2]
[335357868,1724158238344,-211.51810626,0.00013599,2]
[335357869,1724158238354,-3000.0,0.00013699,2]
[335357870,1724158238363,-485.992769,0.00013699,2]
[335357871,1724158238372,-194.83065114,0.00013699,2]
[335357872,1724158238382,-500.0,0.00013699,2]
[335357873,1724158238391,-500.0,0.00013699,2]
[335357874,1724158238400,-500.0,0.00013699,2]
[335357875,1724158238410,-500.0,0.00013699,2]
[335357876,1724158238419,-500.0,0.00013699,2]
[335357877,1724158238428,-500.0,0.00013699,2]
[335357878,1724158238438,-500.0,0.00013699,2]
[335357879,1724158238447,-500.0,0.00013699,2]
[335357880,1724158238456,-500.0,0.00013699,2]
[335357881,1724158238465,-500.0,0.00013699,2]